fUSD/lending_fUSD_20240119
["ID","MTS","AMOUNT","RATE_DAILY","PERIOD"]
[312223085,1705693873052,-803.95,0.00026027,2]
[312223086,1705693873062,-1552.1,0.00026027,2]
[312223087,1705693873073,-500.0,0.00026027,2]
[312223088,1705693873082,-500.0,0.00026027,2]
[312223089,1705693873091,-896.77,0.00026027,2]
[312223090,1705693873100,-650.24,0.00026027,2]
[312223091,1705693873109,-500.0,0.00026027,2]
[312223092,1705693873118,-722.38,0.00026027,2]
[312223093,1705693873128,-568.74,0.00026027,2]
[312223094,1705693873138,-500.0,0.00026027,2]
[312223095,1705693873148,-500.0,0.00026027,2]
[312223096,1705693873157,-780.36,0.00026027,2]
[312223097,1705693873166,-500.0,0.00026027,2]
[312223098,1705693873176,-500.0,0.00026027,2]
[312223099,1705693873186,-793.35,0.00026027,2]
[312223100,1705693873195,-1671.21,0.00026027,2]
[312223101,1705693873205,-158.42,0.00026027,2]
[312223102,1705693873214,-799.48,0.00026027,2]
[312223103,1705693873224,-934.16,0.00026027,2]
[312223104,1705693873234,-294.6556781,0.00026027,2]
[312223105,1705693873243,-1066.92,0.00026027,2]
[312223106,1705693873253,-2127.17,0.00026027,2]
[312223107,1705693873263,-500.0,0.00026027,2]
[312223108,1705693873273,-1404.62,0.00026027,2]
[312223109,1705693873283,-500.0,0.00026027,2]
[312223110,1705693873294,-557.49,0.00026027,2]
[312223111,1705693873304,-1384.57,0.00026027,2]
[312223112,1705693873314,-500.0,0.00026027,2]
[312223113,1705693873324,-500.0,0.00026027,2]
[312223114,1705693873340,-2093.33,0.00026027,2]
[312223115,1705693873351,-1299.85,0.00026027,2]
[312223116,1705693873361,-500.0,0.00026027,2]
[312223117,1705693873370,-500.0,0.00026027,2]
[312223118,1705693873381,-500.0,0.00026027,2]
[312223119,1705693873390,-1514.23,0.00026027,2]
[312223120,1705693873399,-500.0,0.00026027,2]
[312223121,1705693873409,-184.28,0.0002607,2]
[312223122,1705693873419,-165.93960689,0.00026168,2]
[312223123,1705693873428,-200.0,0.00026238,2]
[312223124,1705693873438,-200.0,0.00026238,2]
[312223125,1705693873448,-5208.80771255,0.00026254,2]
[312223126,1705693873458,-596.64,0.00026273,2]
[312223127,1705693873468,-500.0,0.00026301,2]
[312223128,1705693873478,-451.06,0.00026301,2]
[312223129,1705693873488,-500.0,0.00026301,2]
[312223130,1705693873498,-552.18,0.00026301,2]
[312223131,1705693873509,-625.68,0.00026301,2]
[312223132,1705693873519,-610.9,0.00026301,2]
[312223133,1705693873685,-326.5,0.00026301,2]
[312223134,1705693873695,-626.51551592,0.00026301,2]
[312223135,1705693873705,-500.0,0.00026301,2]
[312223136,1705693873714,-500.0,0.00026301,2]
[312223137,1705693873723,-447.11,0.00026301,2]
[312223138,1705693873732,-500.0,0.00026301,2]
[312223139,1705693873742,-500.0,0.00026301,2]
[312223140,1705693873751,-277.18,0.00026301,2]
[312223141,1705693873761,-500.0,0.00026301,2]
[312223142,1705693873770,-600.29762767,0.00026301,2]
[312223143,1705693873779,-386.80053392,0.00026301,2]
[312223144,1705693873789,-267.48,0.00026301,2]
[312223145,1705693873800,-2365.35,0.00026301,2]
[312223146,1705693873809,-500.0,0.00026301,2]
[312223147,1705693873819,-500.0,0.00026301,2]
[312223148,1705693873828,-311.46,0.00026301,2]
[312223149,1705693873838,-384.32,0.00026301,2]
[312223150,1705693873847,-500.0,0.00026301,2]
[312223151,1705693873857,-506.13,0.00026301,2]
[312223152,1705693873866,-634.16,0.00026301,2]
[312223153,1705693873876,-156.13,0.00026301,2]
[312223154,1705693873886,-645.81,0.00026301,2]
[312223155,1705693873895,-500.0,0.00026301,2]
[312223156,1705693873905,-500.0,0.00026301,2]
[312223157,1705693873914,-377.93,0.00026301,2]
[312223158,1705693873924,-500.0,0.00026301,2]
[312223159,1705693873934,-500.0,0.00026301,2]
[312223160,1705693873944,-928.77,0.00026301,2]
[312223161,1705693873954,-500.0,0.00026301,2]
[312223162,1705693873964,-500.0,0.00026301,2]
[312223163,1705693873974,-500.0,0.00026301,2]
[312223164,1705693873984,-1861.12,0.00026301,2]
[312223165,1705693873994,-500.0,0.00026301,2]
[312223166,1705693874003,-917.31,0.00026301,2]
[312223167,1705693874013,-1764.9,0.00026301,2]
[312223168,1705693874022,-500.0,0.00026301,2]
[312223169,1705693874032,-521.62,0.00026301,2]
[312223170,1705693874043,-1550.69,0.00026301,2]
[312223171,1705693874053,-1130.94,0.00026301,2]
[312223172,1705693874063,-545.79,0.00026301,2]
[312223173,1705693874073,-623.05,0.00026301,2]
[312223174,1705693874083,-771.68,0.00026301,2]
[312223175,1705693874092,-500.0,0.00026301,2]
[312223176,1705693874102,-215.8,0.00026301,2]
[312223177,1705693874111,-503.49,0.00026301,2]
[312223178,1705693874121,-208.7245388,0.00026301,5]
[312223179,1705693874131,-500.0,0.00026301,5]
[312223180,1705693874141,-500.0,0.00026301,2]
[312223181,1705693874151,-1084.24,0.00026301,2]
[312223182,1705693874160,-1823.68,0.00026301,2]
[312223183,1705693874170,-3335.07,0.00026301,2]
[312223184,1705693874180,-1731.4,0.00026301,2]
[312223185,1705693874190,-500.0,0.00026301,2]
[312223186,1705693874199,-2037.15,0.00026301,2]
[312223187,1705693874209,-2037.79,0.00026301,2]
[312223188,1705693874219,-500.0,0.00026301,2]
[312223189,1705693874229,-1807.75,0.00026301,2]
[312223190,1705693874239,-680.7,0.00026301,2]
[312223191,1705693874249,-1014.02,0.00026301,2]
[312223192,1705693874259,-318.66,0.00026301,2]
[312223193,1705693874269,-594.05689303,0.00026301,2]
[312223194,1705693874665,-1355.90310697,0.00026301,2]
[312223195,1705693874675,-500.0,0.00026301,2]
[312223196,1705693874684,-659.73,0.00026301,2]
[312223197,1705693874693,-500.0,0.00026301,2]
[312223198,1705693874702,-809.52,0.00026301,2]
[312223199,1705693874711,-3033.49,0.00026301,2]
[312223200,1705693874721,-1580.72,0.00026301,2]
[312223201,1705693874730,-500.0,0.00026301,2]
[312223202,1705693874740,-2228.23,0.00026301,2]
[312223203,1705693874750,-569.78,0.00026301,2]
[312223204,1705693874759,-2403.96,0.00026301,2]
[312223205,1705693874768,-500.0,0.00026301,2]
[312223206,1705693874778,-715.15,0.00026301,2]
[312223207,1705693874787,-1528.36,0.00026301,2]
[312223208,1705693874797,-707.27,0.00026301,2]
[312223209,1705693874807,-500.0,0.00026301,2]
[312223210,1705693874816,-839.61,0.00026301,2]
[312223211,1705693874825,-1399.25,0.00026301,2]
[312223212,1705693874835,-500.0,0.00026301,2]
[312223213,1705693874844,-500.0,0.00026301,2]
[312223214,1705693874853,-530.2,0.00026301,2]
[312223215,1705693874872,-500.0,0.00026301,2]
[312223216,1705693874889,-500.0,0.00026301,2]
[312223217,1705693874901,-500.0,0.00026301,2]
[312223218,1705693874916,-500.0,0.00026301,2]
[312223219,1705693874933,-702.87,0.00026301,2]
[312223220,1705693874949,-1669.84,0.00026301,2]
[312223221,1705693874962,-500.0,0.00026301,2]
[312223222,1705693874977,-633.49,0.00026301,2]
[312223223,1705693874991,-500.0,0.00026301,2]
[312223224,1705693875005,-3055.09,0.00026301,2]
[312223225,1705693875021,-4886.42,0.00026301,2]
[312223226,1705693875033,-500.0,0.00026301,2]
[312223227,1705693875050,-500.0,0.00026301,2]
[312223228,1705693875067,-500.0,0.00026301,2]
[312223229,1705693875081,-1081.81,0.00026301,2]
[312223230,1705693875096,-2414.03,0.00026301,2]
[312223231,1705693875113,-3012.69,0.00026301,2]
[312223232,1705693875130,-1049.52,0.00026301,2]
[312223233,1705693875145,-500.0,0.00026301,2]
[312223234,1705693875157,-1539.41,0.00026301,2]
[312223235,1705693875170,-1065.08,0.00026301,2]
[312223236,1705693875185,-500.0,0.00026301,2]
[312223237,1705693875200,-726.75,0.00026301,2]
[312223238,1705693875213,-2998.92,0.00026301,2]
[312223239,1705693875225,-2705.22,0.00026301,2]
[312223240,1705693875241,-1147.13,0.00026301,2]
[312223241,1705693875253,-500.0,0.00026301,2]
[312223242,1705693875267,-1279.96,0.00026301,2]
[312223243,1705693875281,-500.0,0.00026301,2]
[312223244,1705693875297,-549.26,0.00026301,2]
[312223245,1705693875311,-500.0,0.00026301,2]
[312223246,1705693875326,-500.0,0.00026301,2]
[312223247,1705693875339,-892.38,0.00026301,2]
[312223248,1705693875353,-575.11,0.00026301,2]
[312223249,1705693875372,-970.57,0.00026301,2]
[312223250,1705693875384,-1314.31,0.00026301,2]
[312223251,1705693875397,-500.0,0.00026301,2]
[312223252,1705693875411,-665.66,0.00026301,2]
[312223253,1705693875424,-500.0,0.00026301,2]
[312223254,1705693875438,-1312.06,0.00026301,2]
[312223255,1705693875451,-500.0,0.00026301,2]
[312223256,1705693875466,-1440.41,0.00026301,2]
[312223257,1705693875478,-500.0,0.00026301,2]
[312223258,1705693875492,-500.0,0.00026301,2]
[312223259,1705693875504,-801.63,0.00026301,2]
[312223260,1705693875518,-500.0,0.00026301,2]
[312223261,1705693875531,-500.0,0.00026301,2]
[312223262,1705693875544,-225.64,0.00026301,2]
[312223263,1705693875557,-372.34237001,0.00026301,2]
[312223264,1705693875575,-992.28762999,0.00026301,2]
[312223265,1705693875588,-222.29215592,0.00026301,2]
[312223266,1705693875601,-1869.93,0.00026301,2]
[312223267,1705693875614,-500.0,0.00026301,2]
[312223268,1705693875627,-500.0,0.00026301,2]
[312223269,1705693875641,-665.4,0.00026301,2]
[312223270,1705693875653,-500.0,0.00026301,2]
[312223271,1705693875666,-500.0,0.00026301,2]
[312223272,1705693875679,-500.0,0.00026301,2]
[312223273,1705693875693,-849.71,0.00026301,2]
[312223274,1705693875706,-2620.86,0.00026301,2]
[312223275,1705693875719,-637.71,0.00026301,2]
[312223276,1705693875732,-1448.26,0.00026301,2]
[312223277,1705693875746,-4987.45,0.00026301,2]
[312223278,1705693875760,-500.0,0.00026301,2]
[312223279,1705693875772,-500.0,0.00026301,2]
[312223280,1705693875786,-531.02,0.00026301,2]
[312223281,1705693875800,-500.0,0.00026301,2]
[312223282,1705693875813,-500.0,0.00026301,2]
[312223283,1705693875826,-803.95,0.00026301,2]
[312223284,1705693875840,-1552.1,0.00026301,2]
[312223285,1705693875853,-500.0,0.00026301,2]
[312223286,1705693875867,-500.0,0.00026301,2]
[312223287,1705693875881,-896.77,0.00026301,2]
[312223288,1705693875895,-650.24,0.00026301,2]
[312223289,1705693875906,-500.0,0.00026301,2]
[312223290,1705693875916,-722.38,0.00026301,2]
[312223291,1705693875926,-568.74,0.00026301,2]
[312223292,1705693875935,-500.0,0.00026301,2]
[312223293,1705693875944,-500.0,0.00026301,2]
[312223294,1705693875953,-780.36,0.00026301,2]
[312223295,1705693875964,-500.0,0.00026301,2]
[312223296,1705693875973,-324.71,0.00026301,2]
[312223297,1705693875984,-793.35,0.00026301,2]
[312223298,1705693875994,-1671.21,0.00026301,2]
[312223299,1705693876003,-799.48,0.00026301,2]
[312223300,1705693876017,-934.16,0.00026301,2]
[312223301,1705693876027,-1066.92,0.00026301,2]
[312223302,1705693876038,-2127.17,0.00026301,2]
[312223303,1705693876054,-500.0,0.00026301,2]
[312223304,1705693876063,-1404.62,0.00026301,2]
[312223305,1705693876073,-500.0,0.00026301,2]
[312223306,1705693876098,-557.49,0.00026301,2]
[312223307,1705693876109,-1384.57,0.00026301,2]
[312223308,1705693876131,-500.0,0.00026301,2]
[312223309,1705693876143,-500.0,0.00026301,2]
[312223310,1705693876163,-2093.33,0.00026301,2]
[312223311,1705693876174,-1299.85,0.00026301,2]
[312223312,1705693876185,-500.0,0.00026301,2]
[312223313,1705693876196,-374.81,0.00026301,2]
[312223314,1705693876205,-500.0,0.00026301,2]
[312223315,1705693876214,-1514.23,0.00026301,2]
[312223316,1705693876235,-500.0,0.00026301,2]
[312223317,1705693876246,-167.0,0.00026302,2]
[312223318,1705693876273,-158.1,0.00026308,2]
[312223319,1705693876297,-1049.02303561,0.00026312,2]
[312223320,1705693876307,-165.93960689,0.00026382,2]
[312223321,1705693876318,-237.26198864,0.00026397,2]
[312223322,1705693876329,-1007.71905178,0.00026482,2]
[312223323,1705693876339,-433.03,0.00026575,2]
[312223324,1705693876353,-500.0,0.00026575,2]
[312223325,1705693876368,-529.24,0.00026575,2]
[312223326,1705693876379,-500.0,0.00026575,2]
[312223327,1705693876390,-500.0,0.00026575,2]
[312223328,1705693876400,-500.0,0.00026575,2]
[312223329,1705693876416,-2365.35,0.00026575,2]
[312223330,1705693876426,-252.12,0.00026575,2]
[312223331,1705693876435,-500.0,0.00026575,2]
[312223332,1705693876454,-500.0,0.00026575,2]
[312223333,1705693876464,-506.13,0.00026575,2]
[312223334,1705693876475,-500.0,0.00026575,2]
[312223335,1705693876484,-500.0,0.00026575,2]
[312223336,1705693876495,-500.0,0.00026575,2]
[312223337,1705693876505,-500.0,0.00026575,2]
[312223338,1705693876518,-928.77,0.00026575,2]
[312223339,1705693876529,-500.0,0.00026575,2]
[312223340,1705693876539,-500.0,0.00026575,2]
[312223341,1705693876552,-500.0,0.00026575,2]
[312223342,1705693876562,-1861.12,0.00026575,2]
[312223343,1705693876573,-309.11,0.00026575,2]
[312223344,1705693876586,-917.31,0.00026575,2]
[312223345,1705693876596,-1764.9,0.00026575,2]
[312223346,1705693876607,-596.97,0.00026575,2]
[312223347,1705693876618,-521.62,0.00026575,2]
[312223348,1705693876628,-1130.94,0.00026575,2]
[312223349,1705693876638,-1550.69,0.00026575,2]
[312223350,1705693876648,-623.05,0.00026575,2]
[312223351,1705693876657,-500.0,0.00026575,2]
[312223352,1705693877072,-771.68,0.00026575,2]
[312223353,1705693877096,-503.49,0.00026575,2]
[312223354,1705693877146,-235.71,0.00026575,5]
[312223355,1705693877157,-500.0,0.00026575,2]
[312223356,1705693877166,-1084.24,0.00026575,2]
[312223357,1705693877175,-1823.68,0.00026575,2]
[312223358,1705693877184,-3335.07,0.00026575,2]
[312223359,1705693877194,-1731.4,0.00026575,2]
[312223360,1705693877203,-500.0,0.00026575,2]
[312223361,1705693877213,-2037.15,0.00026575,2]
[312223362,1705693877223,-2037.79,0.00026575,2]
[312223363,1705693877232,-500.0,0.00026575,2]
[312223364,1705693877242,-1807.75,0.00026575,2]
[312223365,1705693877252,-680.7,0.00026575,2]
[312223366,1705693877261,-1014.02,0.00026575,2]
[312223367,1705693877271,-1949.96,0.00026575,2]
[312223368,1705693877281,-500.0,0.00026575,2]
[312223369,1705693877290,-659.73,0.00026575,2]
[312223370,1705693877300,-500.0,0.00026575,2]
[312223371,1705693877310,-809.52,0.00026575,2]
[312223372,1705693877320,-3033.49,0.00026575,2]
[312223373,1705693877330,-1580.72,0.00026575,2]
[312223374,1705693877340,-299.81,0.00026575,2]
[312223375,1705693877351,-2228.23,0.00026575,2]
[312223376,1705693877362,-2403.96,0.00026575,2]
[312223377,1705693877371,-500.0,0.00026575,2]
[312223378,1705693877381,-715.15,0.00026575,2]
[312223379,1705693877391,-1528.36,0.00026575,2]
[312223380,1705693877400,-707.27,0.00026575,2]
[312223381,1705693877619,-500.0,0.00026575,2]
[312223382,1705693877630,-839.61,0.00026575,2]
[312223383,1705693877639,-1399.25,0.00026575,2]
[312223384,1705693877649,-500.0,0.00026575,2]
[312223385,1705693877659,-500.0,0.00026575,2]
[312223386,1705693877669,-530.2,0.00026575,2]
[312223387,1705693877679,-500.0,0.00026575,2]
[312223388,1705693877688,-500.0,0.00026575,2]
[312223389,1705693877698,-631.9,0.00026575,2]
[312223390,1705693877708,-500.0,0.00026575,2]
[312223391,1705693877718,-702.87,0.00026575,2]
[312223392,1705693877728,-1669.84,0.00026575,2]
[312223393,1705693877737,-500.0,0.00026575,2]
[312223394,1705693877747,-633.49,0.00026575,2]
[312223395,1705693877757,-445.08,0.00026575,2]
[312223396,1705693877766,-2680.8343147,0.00026575,2]
[312223397,1705693877781,-374.2556853,0.00026575,2]
[312223398,1705693877790,-4886.42,0.00026575,2]
[312223399,1705693877800,-398.06,0.00026575,2]
[312223400,1705693877809,-500.0,0.00026575,2]
[312223401,1705693877819,-500.0,0.00026575,2]
[312223402,1705693877828,-1081.81,0.00026575,2]
[312223403,1705693877838,-2414.03,0.00026575,2]
[312223404,1705693877848,-1049.52,0.00026575,2]
[312223405,1705693877857,-3012.69,0.00026575,2]
[312223406,1705693877867,-500.0,0.00026575,2]
[312223407,1705693877877,-1539.41,0.00026575,2]
[312223408,1705693877886,-1065.08,0.00026575,2]
[312223409,1705693877896,-500.0,0.00026575,2]
[312223410,1705693877905,-726.75,0.00026575,2]
[312223411,1705693877914,-2998.92,0.00026575,2]
[312223412,1705693877924,-2705.22,0.00026575,2]
[312223413,1705693877934,-1147.13,0.00026575,2]
[312223414,1705693877944,-500.0,0.00026575,2]
[312223415,1705693877953,-1279.96,0.00026575,2]
[312223416,1705693877963,-500.0,0.00026575,2]
[312223417,1705693877973,-549.26,0.00026575,2]
[312223418,1705693877982,-500.0,0.00026575,2]
[312223419,1705693877991,-500.0,0.00026575,2]
[312223420,1705693878001,-892.38,0.00026575,2]
[312223421,1705693878010,-575.11,0.00026575,2]
[312223422,1705693878019,-970.57,0.00026575,2]
[312223423,1705693878029,-1314.31,0.00026575,2]
[312223424,1705693878040,-500.0,0.00026575,2]
[312223425,1705693878049,-665.66,0.00026575,2]
[312223426,1705693878058,-500.0,0.00026575,2]
[312223427,1705693878067,-1312.06,0.00026575,2]
[312223428,1705693878077,-500.0,0.00026575,2]
[312223429,1705693878086,-1440.41,0.00026575,2]
[312223430,1705693878095,-445.00037811,0.00026575,2]
[312223431,1705693878103,-500.0,0.00026575,2]
[312223432,1705693878113,-801.63,0.00026575,2]
[312223433,1705693878122,-500.0,0.00026575,2]
[312223434,1705693878131,-500.0,0.00026575,2]
[312223435,1705693878140,-1364.63,0.00026575,2]
[312223436,1705693878150,-1869.93,0.00026575,2]
[312223437,1705693878159,-429.44,0.00026575,2]
[312223438,1705693878168,-226.54291783,0.00026575,2]
[312223439,1705693878177,-665.4,0.00026575,2]
[312223440,1705693878187,-500.0,0.00026575,2]
[312223441,1705693878196,-572.80032673,0.00026575,2]
[312223442,1705693878206,-849.71,0.00026575,2]
[312223443,1705693878216,-500.0,0.00026575,2]
[312223444,1705693878226,-2620.86,0.00026575,2]
[312223445,1705693878236,-637.71,0.00026575,2]
[312223446,1705693878246,-1448.26,0.00026575,2]
[312223447,1705693878256,-4987.45,0.00026575,2]
[312223448,1705693878265,-500.0,0.00026575,2]
[312223449,1705693878276,-627.73026869,0.00026575,2]
[312223450,1705693878286,-531.02,0.00026575,2]
[312223451,1705693878299,-500.0,0.00026575,2]
[312223452,1705693878309,-803.95,0.00026575,2]
[312223453,1705693878319,-1552.1,0.00026575,2]
[312223454,1705693878332,-500.0,0.00026575,2]
[312223455,1705693878342,-500.0,0.00026575,2]
[312223456,1705693878352,-896.77,0.00026575,2]
[312223457,1705693878362,-650.24,0.00026575,2]
[312223458,1705693878371,-500.0,0.00026575,2]
[312223459,1705693878382,-722.38,0.00026575,2]
[312223460,1705693878392,-568.74,0.00026575,2]
[312223461,1705693878403,-500.0,0.00026575,2]
[312223462,1705693878413,-460.2,0.00026575,2]
[312223463,1705693878422,-780.36,0.00026575,2]
[312223464,1705693878432,-500.0,0.00026575,2]
[312223465,1705693878442,-793.35,0.00026575,2]
[312223466,1705693878451,-1671.21,0.00026575,2]
[312223467,1705693878461,-799.48,0.00026575,2]
[312223468,1705693878471,-934.16,0.00026575,2]
[312223469,1705693878480,-2127.17,0.00026575,2]
[312223470,1705693878490,-1066.92,0.00026575,2]
[312223471,1705693878500,-500.0,0.00026575,2]
[312223472,1705693878510,-1404.62,0.00026575,2]
[312223473,1705693878520,-500.0,0.00026575,2]
[312223474,1705693878529,-557.49,0.00026575,2]
[312223475,1705693878539,-1384.57,0.00026575,2]
[312223476,1705693878550,-500.0,0.00026575,2]
[312223477,1705693878559,-559.43,0.00026575,2]
[312223478,1705693878569,-2093.33,0.00026575,2]
[312223479,1705693878578,-1299.85,0.00026575,2]
[312223480,1705693878588,-500.0,0.00026575,2]
[312223481,1705693878597,-500.0,0.00026575,2]
[312223482,1705693878606,-1514.23,0.00026575,2]
[312223483,1705693878615,-500.0,0.00026575,2]
[312223484,1705693878626,-162.9,0.00026575,2]
[312223485,1705693878635,-16215.16,0.00026575,2]
[312223486,1705693878645,-165.93960689,0.00026597,2]
[312223487,1705693878655,-426.05,0.00026615,2]
[312223488,1705693878664,-1896.15842977,0.00026693,3]
[312223489,1705693878673,-159.8,0.0002673,2]
[312223490,1705693878683,-800.0,0.00026806,2]
[312223491,1705693878692,-165.93960689,0.00026811,2]
[312223492,1705693878701,-157.98,0.00026832,2]
[312223493,1705693878710,-500.0,0.00026849,2]
[312223494,1705693878719,-520.83,0.00026849,2]
[312223495,1705693878729,-500.0,0.00026849,2]
[312223496,1705693878739,-500.0,0.00026849,2]
[312223497,1705693878749,-2365.35,0.00026849,2]
[312223498,1705693878758,-500.0,0.00026849,2]
[312223499,1705693878768,-500.0,0.00026849,2]
[312223500,1705693878777,-506.13,0.00026849,2]
[312223501,1705693878786,-500.0,0.00026849,2]
[312223502,1705693878797,-500.0,0.00026849,2]
[312223503,1705693878807,-500.0,0.00026849,2]
[312223504,1705693878817,-928.77,0.00026849,2]
[312223505,1705693878826,-500.0,0.00026849,2]
[312223506,1705693878835,-500.0,0.00026849,2]
[312223507,1705693878844,-500.0,0.00026849,2]
[312223508,1705693878853,-1861.12,0.00026849,2]
[312223509,1705693878863,-917.31,0.00026849,2]
[312223510,1705693878873,-1764.9,0.00026849,2]
[312223511,1705693878883,-521.62,0.00026849,2]
[312223512,1705693878892,-1130.94,0.00026849,2]
[312223513,1705693878902,-1550.69,0.00026849,2]
[312223514,1705693878911,-623.05,0.00026849,2]
[312223515,1705693878920,-500.0,0.00026849,2]
[312223516,1705693878929,-771.68,0.00026849,2]
[312223517,1705693878939,-503.49,0.00026849,2]
[312223518,1705693878948,-500.0,0.00026849,2]
[312223519,1705693878958,-1084.24,0.00026849,2]
[312223520,1705693878967,-1823.68,0.00026849,2]
[312223521,1705693878976,-3335.07,0.00026849,2]
[312223522,1705693878986,-1731.4,0.00026849,2]
[312223523,1705693878995,-586.34154171,0.00026849,2]
[312223524,1705693879004,-2037.15,0.00026849,2]
[312223525,1705693879013,-2037.79,0.00026849,2]
[312223526,1705693879022,-500.0,0.00026849,2]
[312223527,1705693879032,-1807.75,0.00026849,2]
[312223528,1705693879042,-680.7,0.00026849,2]
[312223529,1705693879051,-1014.02,0.00026849,2]
[312223530,1705693879061,-1949.96,0.00026849,2]
[312223531,1705693879070,-500.0,0.00026849,2]
[312223532,1705693879080,-659.73,0.00026849,2]
[312223533,1705693879089,-500.0,0.00026849,2]
[312223534,1705693879099,-3033.49,0.00026849,2]
[312223535,1705693879108,-809.52,0.00026849,2]
[312223536,1705693879117,-1580.72,0.00026849,2]
[312223537,1705693879128,-2228.23,0.00026849,2]
[312223538,1705693879138,-500.0,0.00026849,2]
[312223539,1705693879148,-2403.96,0.00026849,2]
[312223540,1705693879158,-715.15,0.00026849,2]
[312223541,1705693879168,-1528.36,0.00026849,2]
[312223542,1705693879178,-707.27,0.00026849,2]
[312223543,1705693879187,-500.0,0.00026849,2]
[312223544,1705693879197,-839.61,0.00026849,2]
[312223545,1705693879208,-1399.25,0.00026849,2]
[312223546,1705693879219,-500.0,0.00026849,2]
[312223547,1705693879229,-500.0,0.00026849,2]
[312223548,1705693879239,-530.2,0.00026849,2]
[312223549,1705693879249,-500.0,0.00026849,2]
[312223550,1705693879259,-500.0,0.00026849,2]
[312223551,1705693879270,-500.0,0.00026849,2]
[312223552,1705693879279,-702.87,0.00026849,2]
[312223553,1705693879290,-1669.84,0.00026849,2]
[312223554,1705693879304,-500.0,0.00026849,2]
[312223555,1705693879314,-633.49,0.00026849,2]
[312223556,1705693879325,-3055.09,0.00026849,2]
[312223557,1705693879334,-4886.42,0.00026849,2]
[312223558,1705693879346,-500.0,0.00026849,2]
[312223559,1705693879355,-500.0,0.00026849,2]
[312223560,1705693879365,-1081.81,0.00026849,2]
[312223561,1705693879375,-2414.03,0.00026849,2]
[312223562,1705693879385,-1049.52,0.00026849,2]
[312223563,1705693879397,-3012.69,0.00026849,2]
[312223564,1705693879408,-500.0,0.00026849,2]
[312223565,1705693879418,-1539.41,0.00026849,2]
[312223566,1705693879428,-1065.08,0.00026849,2]
[312223567,1705693879439,-500.0,0.00026849,2]
[312223568,1705693879450,-726.75,0.00026849,2]
[312223569,1705693879460,-2998.92,0.00026849,2]
[312223570,1705693879470,-2705.22,0.00026849,2]
[312223571,1705693879480,-1147.13,0.00026849,2]
[312223572,1705693879491,-500.0,0.00026849,2]
[312223573,1705693879502,-1279.96,0.00026849,2]
[312223574,1705693879512,-623.01,0.00026849,2]
[312223575,1705693879522,-549.26,0.00026849,2]
[312223576,1705693879531,-500.0,0.00026849,2]
[312223577,1705693879541,-500.0,0.00026849,2]
[312223578,1705693879551,-892.38,0.00026849,2]
[312223579,1705693879561,-575.11,0.00026849,2]
[312223580,1705693879571,-970.57,0.00026849,2]
[312223581,1705693879581,-1314.31,0.00026849,2]
[312223582,1705693879590,-500.0,0.00026849,2]
[312223583,1705693879600,-665.66,0.00026849,2]
[312223584,1705693879610,-500.0,0.00026849,2]